Cogmind - Beta 12 X1 @@@ ROGUE MODE // 2022.08.09 @ 11:30:50 Player: btmk16 Result: Destroyed by Y-64 Sentinel with KE Penetrator Performance ------------- Evolutions (5) 2500 Regions Visited (11) 2200 Robots Destroyed (147) 735 Value Destroyed (5198) 5198 Prototype IDs (21) 420 Alien Tech Used (0) 0 Bonus (735) 735 TOTAL SCORE: 11788 Bonus ------- High Alert Combat Kills 187 Follower Combat Kills 48 Entered Garrisons 200 Met Data Miner 300 Cogmind --------- Core Integrity 0/1000 Matter 32/300 Energy 100/100 System Corruption 0% Temperature Cool (9) Movement Core (50) Location -5/Factory Parts ------- > --- POWER (1) -------- (None) > --- PROPULSION (4) --- (None) > --- UTILITY (8) ------ (None) > --- WEAPON (4) ------- (None) > --- INVENTORY (5) ---- Armored Leg Armored Leg Mass Driver Mass Driver Mass Driver Peak State ------------ > --- POWER ------------ Neutrino Core > --- PROPULSION ------- Armored Treads Advanced Treads Medium Treads Medium Treads > --- UTILITY ---------- Improved Heat Sink Improved Cooling System Large Storage Unit Machine Analyzer Hardened Heavy Armor Plating > --- WEAPON ----------- Precision Beam Rifle Improved Spread Laser Improved Spread Laser Improved Spread Laser > --- INVENTORY -------- Nuclear Core Reinforced Deuterium Engine F-cell Engine Light Antimatter Reactor Carbon-fiber Leg Compact Battery Improved Terrain Scanner Hardened Medium Armor Plating Hardened Medium Armor Plating Hacking Suite Precision Beam Rifle Precision Beam Rifle Grenade Launcher Mini Grenade Launcher Chainsword [Rating: 63] Favorites ----------- Power Reinforced Deuterium Engine Engine Reinforced Deuterium Engine Power Core Neutrino Core Reactor Light Antimatter Reactor Propulsion Light Treads Treads Light Treads Leg Carbon-fiber Leg Wheel Compact Wheel Utility Large Storage Unit Device Improved Heat Sink Storage Large Storage Unit Processor Machine Analyzer Protection Hardened Heavy Armor Plating Weapon Precision Beam Rifle Energy Gun Precision Beam Rifle Energy Cannon Phase Cannon Ballistic Gun Light Assault Rifle Ballistic Cannon Mass Driver Launcher Grenade Launcher Slashing Weapon Chainsword Build | -11 -10 -9 -8 -7 -7 -6 -6 -6 -6 -5 -5 ------- Run | Scr Mat Mat Mat Fac Gar Fac Low Low Dat Pro Fac Slots Evolved 10 | . . 2 2 2 . 2 . . . . 2 Power . | . . . . . . . . . . . . Propulsion 2 | . . . 1 . . 1 . . . . . Utility 6 | . . 1 1 1 . 1 . . . . 2 Weapon 2 | . . 1 . 1 . . . . . . . Parts Attached 137 | 8 15 18 24 11 6 7 7 7 . 25 9 Power 12 | 1 1 1 1 3 1 . . 1 . 3 . Engine 9 | 1 1 1 1 2 1 . . . . 2 . Core 2 | . . . . 1 . . . 1 . . . Reactor 1 | . . . . . . . . . . 1 . Propulsion 39 | 2 4 6 8 1 2 1 3 2 . 5 5 Treads 29 | . 4 6 8 1 2 1 2 2 . 3 . Leg 7 | . . . . . . . 1 . . 1 5 Wheel 3 | 2 . . . . . . . . . 1 . Hover . | . . . . . . . . . . . . Flight . | . . . . . . . . . . . . Utility 43 | 2 3 6 5 4 1 5 2 1 . 14 . Device 26 | 1 2 4 1 2 1 3 1 . . 11 . Storage 4 | 1 1 1 . . . . . . . 1 . Processor 1 | . . . . . . 1 . . . . . Hackware . | . . . . . . . . . . . . Protection 12 | . . 1 4 2 . 1 1 1 . 2 . Artifact . | . . . . . . . . . . . . Weapon 43 | 3 7 5 10 3 2 1 2 3 . 3 4 Energy Gun 28 | 1 5 4 9 3 1 1 2 1 . 1 . Energy Cannon 2 | . . . 1 . . . . . . 1 . Ballistic Gun 4 | 2 2 . . . . . . . . . . Ballistic Cannon 4 | . . . . . . . . . . . 4 Launcher 4 | . . 1 . . 1 . . 2 . . . Special Weapon . | . . . . . . . . . . . . Impact Weapon . | . . . . . . . . . . . . Slashing Weapon 1 | . . . . . . . . . . 1 . Piercing Weapon . | . . . . . . . . . . . . Special Melee Weapon . | . . . . . . . . . . . . Unidentified Prototypes 9 | . . 1 3 2 . . . . . 3 . Corrupted Parts 1 | . . . . . . . . . . 1 . System Corruption 5 | . . . . . . . . . . 5 . Parts Lost 44 | . 4 . 4 . 3 . 8 3 . 22 . Power 4 | . 1 . 1 . . . . . . 2 . Propulsion 12 | . . . . . 2 . 3 . . 7 . Utility 16 | . 1 . 1 . 1 . 3 1 . 9 . Weapon 12 | . 2 . 2 . . . 2 2 . 4 . Highest Loss Streak 7 | . 3 . 1 . 2 . 5 2 . 7 . To Critical Strikes . | . . . . . . . . . . . . Average Slot Usage (%) 91 | . 97 99 98 93 91 98 92 92 86 62 19 Engine 7 | . 14 11 8 4 4 6 6 3 . . . Treads 23 | . 27 22 26 23 22 26 24 22 26 14 . Device 15 | . 12 16 17 14 14 20 16 13 13 21 . Storage 7 | . 14 11 9 7 7 6 6 5 . 1 . Processor 1 | . . . . . . 4 6 6 6 1 . Protection 5 | . . 4 9 10 7 6 5 6 13 5 . Energy Gun 23 | . 12 32 26 29 29 26 23 25 20 2 . Ballistic Gun 2 | . 14 . . . . . . . . . . Naked Turns 73 | . . . . . . . . . . 8 65 Heaviest Build 72 | 14 32 41 48 60 68 69 72 72 57 57 36 Greatest Support 98 | 32 40 40 60 60 63 85 93 98 98 76 64 Greatest Overweight (x) 3 | . . 1 1 . 1 . 1 1 . 3 1 Average Overweight (x) . | . . . . . . . . . . . . Largest Inventory Capacity 15 | 8 15 15 15 15 15 15 15 15 5 5 5 Average Capacity 13 | 7 14 15 15 15 15 15 15 13 5 5 5 Most Carried 15 | 8 15 15 15 15 15 15 15 15 5 5 5 Average Carried 12 | 5 13 14 14 14 14 14 14 12 5 2 2 Final Capacity 15 | 8 15 15 15 15 15 15 15 5 5 5 5 Final Carried 15 | 8 14 15 14 15 14 15 13 5 5 . 5 Class Distribution -------------------- 36% | Scavenger-Tank 20% | Mutant 17% | Tank 13% | Scavenger-Gunner 9% | Scavenger-Mutant Dominant Class ---------------- Mutant | -10/Materials Tank | -9/Materials Tank | -8/Materials Scavenger-Tank | -7/Factory Scavenger-Tank | -7/Garrison Scavenger-Tank | -6/Factory Scavenger-Gunner | -6/Lower Caves Scavenger-Tank | -6/Lower Caves Scavenger-Tank | -6/Data Miner Scavenger-Mutant | -5/Proximity Caves Mutant | -5/Factory Resources | -11 -10 -9 -8 -7 -7 -6 -6 -6 -6 -5 -5 ----------- Run | Scr Mat Mat Mat Fac Gar Fac Low Low Dat Pro Fac Matter Collected 1884 | 321 265 233 299 120 202 70 65 105 . 184 20 Remotely . | . . . . . . . . . . . . Salvage Created 6489 | 160 551 801 1033 515 742 476 1226 587 . 379 19 Parts 306 | 10 44 47 60 30 34 20 23 18 . 20 . Haulers Intercepted 11 | . 1 4 3 3 . . . . . . . Recyclers Shooed 4 | . . . 2 2 . . . . . . . Parts Field Recycled . | . . . . . . . . . . . . Retrieved Matter . | . . . . . . . . . . . . Parts Self-Destructed 46 | . . . . . . . 16 9 . 21 . Prevented 1 | . . . . . . . . . . 1 . Kills | -11 -10 -9 -8 -7 -7 -6 -6 -6 -6 -5 -5 ------- Run | Scr Mat Mat Mat Fac Gar Fac Low Low Dat Pro Fac Combat Hostiles Destroyed 105 | . 13 16 21 4 18 6 9 9 . 8 1 Melee 2 | . . . . . . . . . . 2 . Guns 86 | . 12 13 19 4 14 5 9 5 . 5 . Cannons 2 | . . . . . . . . . . 1 1 AOE 11 | . 1 3 . . 3 . . 4 . . . Classes Destroyed 16 | 2 6 2 . 1 2 . 2 . . . 1 Worker 6 | . 2 . 3 . . 1 . . . . . Builder 7 | . 3 1 3 . . . . . . . . Tunneler 4 | 3 . . 1 . . . . . . . . Hauler 11 | . 1 4 3 3 . . . . . . . Recycler 5 | 1 . . 1 2 . 1 . . . . . Operator 1 | . . 1 . . . . . . . . . Watcher 8 | . 1 3 1 1 . 2 . . . . . Swarmer 26 | . 5 3 7 . 4 . 2 5 . . . Grunt 54 | . 8 8 10 1 9 5 3 3 . 7 . Brawler 2 | . . . . . 1 . 1 . . . . Duelist 1 | . . . . . . . . . . . 1 Sentry 15 | . . 5 4 1 1 1 2 1 . . . Hunter 3 | . . . . . 3 . . . . . . Programmer 2 | . . . . 2 . . . . . . . Behemoth 2 | . . . . . . . 1 . . 1 . Packrat 2 | . . . . . . . . 2 . . . Samaritan 6 | . . . . . . . 1 5 . . . Best Kill Streak 7 | 2 5 4 7 2 6 3 5 5 . 4 1 Combat Bots Only 6 | . 5 4 4 1 6 3 5 5 . 4 1 Max Kills in Single Turn 2 | 1 1 2 2 1 1 1 2 2 . 1 1 Gunslinging 1 | . . . 1 . . . . 1 . . . Exploded 2 | . 1 2 . . 1 . . 2 . . . Melee 1 | . . . . . . . . . . 1 . Uniques/NPCs Destroyed . | . . . . . . . . . . . . Combat | -11 -10 -9 -8 -7 -7 -6 -6 -6 -6 -5 -5 -------- Run | Scr Mat Mat Mat Fac Gar Fac Low Low Dat Pro Fac Damage Taken 9788 | . 785 586 1027 107 1127 363 1232 502 . 2358 1701 Core 2004 | . 115 125 119 16 109 11 83 18 . 408 1000 Absorbed by Shields . | . . . . . . . . . . . . Redirected to Shielding 9 | . . 9 . . . . . . . . . Core Remaining (%) 70 | 100 54 68 78 . 82 . . . . 38 . Volleys Fired 366 | 19 71 53 64 16 34 17 29 32 . 23 8 Largest 4 | 2 2 3 3 4 4 4 4 4 . 3 4 Hottest 286 | 40 130 195 202 263 262 270 270 286 . 225 228 Shots Fired 987 | 38 140 151 189 64 117 62 91 72 . 36 27 Gun 937 | 38 140 147 187 64 111 62 91 67 . 30 . Cannon 35 | . . . 2 . . . . . . 6 27 Launcher 15 | . . 4 . . 6 . . 5 . . . Special . | . . . . . . . . . . . . Kinetic 163 | 38 98 . . . . . . . . . 27 Thermal 806 | . 39 147 189 64 111 62 91 67 . 36 . Explosive 15 | . . 4 . . 6 . . 5 . . . Electromagnetic 3 | . 3 . . . . . . . . . . Robot Hit Streak 24 | 9 13 11 13 17 10 9 22 24 . 9 5 Robot Miss Streak 10 | 5 4 4 6 5 5 3 10 6 . 7 4 Penetration Max . | . . . . . . . . . . . . Secondary Targets 14 | . 1 . 2 . 3 2 . 3 . 3 . Max Gunslinging Chain 1 | . 1 . 1 . 1 1 . 1 . 1 . Shots Hit Robots 675 | 25 89 88 128 41 76 48 64 57 . 45 14 Core Hits 473 | 6 32 36 90 19 60 52 59 69 . 47 3 Critical Kills . | . . . . . . . . . . . . Critical Parts Destroyed 1 | . 1 . . . . . . . . . . Critical Strikes 25 | . 1 1 5 1 6 3 4 . . 2 2 Burn 20 | . . 1 5 1 6 3 4 . . . . Destroy 1 | . 1 . . . . . . . . . . Blast 2 | . . . . . . . . . . . 2 Sever 2 | . . . . . . . . . . 2 . Melee Attacks 13 | . . . . . . . . . . 13 . Impact . | . . . . . . . . . . . . Slashing 13 | . . . . . . . . . . 13 . Piercing . | . . . . . . . . . . . . Sneak Attacks . | . . . . . . . . . . . . Combat Hostiles . | . . . . . . . . . . . . Follow-up Attacks . | . . . . . . . . . . . . Damage Inflicted 12789 | 256 999 1564 2037 712 1659 878 1481 1455 . 1220 528 Guns 10809 | 256 956 1396 2022 712 1376 878 1481 1077 . 655 . Cannons 642 | . . . . . . . . . . 150 492 Explosions 872 | . 43 168 . . 283 . . 378 . . . Melee 415 | . . . . . . . . . . 415 . Ramming 51 | . . . 15 . . . . . . . 36 Kinetic 1296 | 256 548 . . . . . . . . . 492 Thermal 10170 | . 423 1396 2022 712 1376 878 1481 1077 . 805 . Explosive 829 | . . 168 . . 283 . . 378 . . . Electromagnetic 28 | . 28 . . . . . . . . . . Impact . | . . . . . . . . . . . . Slashing 415 | . . . . . . . . . . 415 . Piercing . | . . . . . . . . . . . . Highest Corruption 5 | . . 1 . 2 2 . . . . 5 . Average Corruption 1 | . . 1 . 1 2 . . . . 5 . Corruption Purged . | . . . . . . . . . . . . Corruption Blocked . | . . . . . . . . . . . . Effects 36 | . . 9 . 5 8 . . . . 14 . Message Errors 8 | . . 4 . . 1 . . . . 3 . Matter Fused 11 | . . 3 . 1 2 . . . . 5 . Heat Flow Errors 4 | . . . . 1 1 . . . . 2 . Energy Discharges 6 | . . 1 . 1 2 . . . . 2 . Data Loss (minor) 5 | . . 1 . 2 1 . . . . 1 . Misfires 1 | . . . . . 1 . . . . . . Alerts 1 | . . . . . . . . . . 1 . Overload Shots . | . . . . . . . . . . . . Overflow Damage 39 | . . 8 . . . . . 27 . . 4 Projectiles 4 | . . . . . . . . . . . 4 Explosions 35 | . . 8 . . . . . 27 . . . Melee . | . . . . . . . . . . . . Knockbacks 8 | . . . . . . . . . . . 8 Impact . | . . . . . . . . . . . . Kinetic 8 | . . . . . . . . . . . 8 Secondary . | . . . . . . . . . . . . Self-Inflicted Damage 160 | . . 44 78 . . . . 22 . . 16 Shots 4 | . . 2 1 . . . . 1 . . . Rammed 9 | . . . 1 . . . . . . . 8 Targets Rammed 12 | . . . 3 . . . . . . . 9 Kicked 1 | . . . . . . . . . . . 1 Crushed 2 | . . . 2 . . . . . . . . Highest Temperature 471 | . 117 333 405 187 471 416 432 371 . 439 334 Average Temperature 110 | . 32 110 32 68 187 134 135 117 . 203 172 Received Heat Transfer 2960 | . 300 243 432 9 216 172 237 123 . 877 351 Effects 13 | . . 1 . . 5 1 4 1 . . 1 Shutdowns 1 | . . . . . . . . 1 . . . Energy Bleed 5 | . . 1 . . 3 1 . . . . . Interference 3 | . . . . . . . 3 . . . . Matter Decay 2 | . . . . . 1 . . . . . 1 Damage (minor) 1 | . . . . . 1 . . . . . . Damage (major) 1 | . . . . . . . 1 . . . . Siege Activations . | . . . . . . . . . . . . Robots Corrupted . | . . . . . . . . . . . . Combat Hostiles . | . . . . . . . . . . . . Parts Fried . | . . . . . . . . . . . . Impact Corruptions . | . . . . . . . . . . . . Robots Melted 4 | . . . 2 . 1 1 . . . . . Combat Hostiles 4 | . . . 2 . 1 1 . . . . . Parts Melted 37 | . 3 10 7 6 9 2 . . . . . Heat Transferred 19064 | . 921 3367 4371 1525 2842 1629 2356 1323 . 730 . Parts Sabotaged . | . . . . . . . . . . . . Parts Stolen . | . . . . . . . . . . . . Parts Stripped . | . . . . . . . . . . . . Power Chain Reactions 1 | . 1 . . . . . . . . . . Missiles Intercepted . | . . . . . . . . . . . . Alert | -11 -10 -9 -8 -7 -7 -6 -6 -6 -6 -5 -5 ------- Run | Scr Mat Mat Mat Fac Gar Fac Low Low Dat Pro Fac Peak Influence 774 | 20 316 430 774 340 601 411 . . . . 134 Initial 315 | . 13 9 181 300 31 315 . . . . . Average 230 | 9 139 154 475 153 352 326 . . . . 42 Maximum Alert Level 3 | . 1 2 3 1 2 2 . . . . . Low Security (%) 51 | 100 82 71 8 58 25 . . . . . 100 Level 1 31 | . 17 24 30 41 35 66 . . . . . Level 2 15 | . . 4 48 . 39 33 . . . . . Level 3 1 | . . . 12 . . . . . . . . Level 4 . | . . . . . . . . . . . . Level 5 . | . . . . . . . . . . . . High Security . | . . . . . . . . . . . . Max Security . | . . . . . . . . . . . . Squads Dispatched 9 | . 2 3 1 1 . 1 . . . . 1 Investigation 3 | . 2 1 . . . . . . . . . Extermination 1 | . . . . 1 . . . . . . . Reinforcement 4 | . . 2 . . . 1 . . . . 1 Assault 1 | . . . 1 . . . . . . . . Garrison . | . . . . . . . . . . . . Intercept . | . . . . . . . . . . . . Searches Triggered . | . . . . . . . . . . . . Construction Impeded 1 | . . . . . . . . . . . 1 Haulers Reinforced . | . . . . . . . . . . . . Active Scanning Responses . | . . . . . . . . . . . . Cargo Convoy Interrupts . | . . . . . . . . . . . . Stealth | -11 -10 -9 -8 -7 -7 -6 -6 -6 -6 -5 -5 --------- Run | Scr Mat Mat Mat Fac Gar Fac Low Low Dat Pro Fac Distress Signals 5 | . 1 2 2 . . . . . . . . Communications Jammed . | . . . . . . . . . . . . Distress Signals . | . . . . . . . . . . . . Times Spotted 159 | . 24 21 32 7 19 9 9 9 . 18 11 Peak Tracking Total 8 | . 7 3 8 2 8 3 5 5 . 6 7 Tactical Retreats 11 | . 3 1 2 . 1 . . . . 1 3 Traps | -11 -10 -9 -8 -7 -7 -6 -6 -6 -6 -5 -5 ------- Run | Scr Mat Mat Mat Fac Gar Fac Low Low Dat Pro Fac Traps Triggered 8 | . 2 1 2 1 2 . . . . . . Indirectly . | . . . . . . . . . . . . Trap Hack Attempts . | . . . . . . . . . . . . Triggered . | . . . . . . . . . . . . Disarmed . | . . . . . . . . . . . . Reprogrammed 4 | . . 4 . . . . . . . . . Reused . | . . . . . . . . . . . . Traps Extracted . | . . . . . . . . . . . . Installed . | . . . . . . . . . . . . Triggered 2 | . . . . . . . . . . 2 . Machines | -11 -10 -9 -8 -7 -7 -6 -6 -6 -6 -5 -5 ---------- Run | Scr Mat Mat Mat Fac Gar Fac Low Low Dat Pro Fac Machines Disabled 9 | . . 1 4 . 3 . . . . . 1 Max in Single Turn 2 | . . 1 2 . 1 . . . . . 1 Garrison Relay 3 | . . . . . 3 . . . . . . Machines Sabotaged . | . . . . . . . . . . . . Garrisons Compromised . | . . . . . . . . . . . . Overloaded Fab Kills . | . . . . . . . . . . . . Hacking | -11 -10 -9 -8 -7 -7 -6 -6 -6 -6 -5 -5 --------- Run | Scr Mat Mat Mat Fac Gar Fac Low Low Dat Pro Fac Machines Accessed 22 | . 6 5 2 5 . . . . 4 . . Terminals 14 | . 5 5 2 2 . . . . . . . Fabricators 2 | . . . . 2 . . . . . . . Repair Stations . | . . . . . . . . . . . . Recycling Units 1 | . 1 . . . . . . . . . . Scanalyzers . | . . . . . . . . . . . . Garrison Access 1 | . . . . 1 . . . . . . . Total Hacks 72 | . 11 12 6 11 . . . . 32 . . Successful 57 | . 9 7 4 5 . . . . 32 . . Failed 15 | . 2 5 2 6 . . . . . . . Catastrophic 3 | . . 2 . 1 . . . . . . . Database Lockouts . | . . . . . . . . . . . . Manual 10 | . 1 . 3 6 . . . . . . . Terminals 31 | . 9 12 6 4 . . . . . . . Fabricators 5 | . . . . 5 . . . . . . . Repair Stations . | . . . . . . . . . . . . Recycling Units 2 | . 2 . . . . . . . . . . Scanalyzers . | . . . . . . . . . . . . Garrison Access 2 | . . . . 2 . . . . . . . Terminal Hacks 49 | . 6 7 2 2 . . . . 32 . . Record 11 | . . . . . . . . . 11 . . Part Schematic 11 | . . . . . . . . . 11 . . Robot Schematic 7 | . . . . . . . . . 7 . . Prototype ID Bank 5 | . 1 1 . . . . . . 3 . . Branch Access Points 1 | . 1 . . . . . . . . . . Emergency Access Points 2 | . 1 . 1 . . . . . . . . Terminal Index 1 | . . 1 . . . . . . . . . Alert Level 2 | . 1 . . 1 . . . . . . . Unreport Threat 1 | . . . . 1 . . . . . . . Reprogram Traps 2 | . . 2 . . . . . . . . . Maintenance Status 1 | . . 1 . . . . . . . . . Recall Reinforcements 1 | . . 1 . . . . . . . . . Hauler Manifests 1 | . . 1 . . . . . . . . . Registered Components 1 | . 1 . . . . . . . . . . Zone Layout 2 | . 1 . 1 . . . . . . . . Fabricator Hacks . | . . . . . . . . . . . . Repair Station Hacks . | . . . . . . . . . . . . Recycling Unit Hacks 2 | . 2 . . . . . . . . . . Retrieve Components 2 | . 2 . . . . . . . . . . Scanalyzer . | . . . . . . . . . . . . Garrison Access Hacks 1 | . . . . 1 . . . . . . . Unlock Access 1 | . . . . 1 . . . . . . . Unauthorized Hacks 5 | . 1 . 2 2 . . . . . . . Terminals 3 | . 1 . 2 . . . . . . . . Track 1 | . . . 1 . . . . . . . . Botnet 2 | . 1 . 1 . . . . . . . . Fabricators 2 | . . . . 2 . . . . . . . Fabnet 2 | . . . . 2 . . . . . . . Repair Stations . | . . . . . . . . . . . . Recycling Units . | . . . . . . . . . . . . Scanalyzers . | . . . . . . . . . . . . Garrison Access . | . . . . . . . . . . . . Data Cores Recovered . | . . . . . . . . . . . . Used . | . . . . . . . . . . . . Hacking Detections 12 | . 4 3 2 3 . . . . . . . Full Trace Events 1 | . . 1 . . . . . . . . . Feedback Events . | . . . . . . . . . . . . Feedback Blocked . | . . . . . . . . . . . . Robot Schematics Acquired 7 | . . . . . . . . . 7 . . Robots Built . | . . . . . . . . . . . . Authchips . | . . . . . . . . . . . . Time . | . . . . . . . . . . . . Total Robot Build Rating . | . . . . . . . . . . . . Part Schematics Acquired 11 | . . . . . . . . . 11 . . Parts Built . | . . . . . . . . . . . . Authchips . | . . . . . . . . . . . . Time . | . . . . . . . . . . . . Total Part Build Rating . | . . . . . . . . . . . . Parts Repaired . | . . . . . . . . . . . . Time . | . . . . . . . . . . . . Parts Recycled . | . . . . . . . . . . . . Recycled Matter . | . . . . . . . . . . . . Retrieved Matter . | . . . . . . . . . . . . Retrieved Components . | . . . . . . . . . . . . Parts Scanalyzed . | . . . . . . . . . . . . Part Schematics Acquired . | . . . . . . . . . . . . Parts Damaged . | . . . . . . . . . . . . Bothacking | -11 -10 -9 -8 -7 -7 -6 -6 -6 -6 -5 -5 ------------ Run | Scr Mat Mat Mat Fac Gar Fac Low Low Dat Pro Fac Used RIF Installer . | . . . . . . . . . . . . Robots Hacked . | . . . . . . . . . . . . Non-combat . | . . . . . . . . . . . . Combat . | . . . . . . . . . . . . Robot Hacks Applied . | . . . . . . . . . . . . Relay Couplers Released 14 | . . . . . 14 . . . . . . Machine Destruction 14 | . . . . . 14 . . . . . . Fabnet Peak Effective % 6 | . . . . . . 6 6 6 6 2 2 Robots Rewired . | . . . . . . . . . . . . Allies Hacked . | . . . . . . . . . . . . Hacks Repelled . | . . . . . . . . . . . . Allies | -11 -10 -9 -8 -7 -7 -6 -6 -6 -6 -5 -5 -------- Run | Scr Mat Mat Mat Fac Gar Fac Low Low Dat Pro Fac Total Allies 1 | . . . . . . . . . . 1 . Largest Group 1 | . . . . . . . . . . 1 . Highest-Rated Group 96 | . . . . . . . . . . 96 . Highest-Rated Ally 96 | . . . . . . . . . . 96 . Total Orders . | . . . . . . . . . . . . Ally Attacks 18 | . . . . . . . . . . 18 . Total Damage 531 | . . . . . . . . . . 531 . Kills 1 | . . . . . . . . . . 1 . Allies Corrupted . | . . . . . . . . . . . . Allies Melted . | . . . . . . . . . . . . Intel | -11 -10 -9 -8 -7 -7 -6 -6 -6 -6 -5 -5 ------- Run | Scr Mat Mat Mat Fac Gar Fac Low Low Dat Pro Fac Robot Analysis Total . | . . . . . . . . . . . . Derelict Logs Recovered 5 | . . . . . . . 3 2 . . . Drone Launches . | . . . . . . . . . . . . Drone Recoveries . | . . . . . . . . . . . . Exploration | -11 -10 -9 -8 -7 -7 -6 -6 -6 -6 -5 -5 ------------- Run | Scr Mat Mat Mat Fac Gar Fac Low Low Dat Pro Fac Turns Passed 8792 | 152 1278 1423 893 928 590 729 932 913 122 651 181 Spaces Moved 4419 | 78 651 707 374 522 221 407 497 401 78 318 165 Core 142 | 1 . . . . . . . . . 28 113 Treads 4108 | . 633 707 374 522 221 407 497 401 78 268 . Legs 52 | . . . . . . . . . . . 52 Wheels 117 | 77 18 . . . . . . . . 22 . Hover . | . . . . . . . . . . . . Flight . | . . . . . . . . . . . . Fastest Speed 50 | 50 100 160 160 160 160 158 158 158 158 50 50 Average Speed 162 | 99 158 162 160 160 210 158 166 202 158 158 73 Slowest Speed 305 | 100 160 240 240 160 243 158 238 238 158 305 190 Overloaded Moves . | . . . . . . . . . . . . Propulsion Burnouts . | . . . . . . . . . . . . Robots Hopped . | . . . . . . . . . . . . Cave-ins Triggered . | . . . . . . . . . . . . Exploration Rate (%) 41 | 5 87 67 32 16 40 11 66 45 68 54 5 Regions Visited 11 Branch Regions 4 Pre-discovered Areas 1 | . . . . . . . . . 1 . . Known Exits Taken 2 | . . . . 1 . . 1 . . . . Unknown Exits Taken 8 | 1 1 1 1 . . 1 . 1 1 1 . Scrap Searched 4 | . . . . . . . 2 1 . 1 . Spaces Dug . | . . . . . . . . . . . . Terrain Destroyed 117 | . 1 28 32 . 33 . . 12 . 1 10 Melee . | . . . . . . . . . . . . Projectile 11 | . . . . . . . . . . 1 10 AOE 106 | . 1 28 32 . 33 . . 12 . . . Terrain Rammed . | . . . . . . . . . . . . Walls Destroyed . | . . . . . . . . . . . . Machines Disabled . | . . . . . . . . . . . . Actions | -11 -10 -9 -8 -7 -7 -6 -6 -6 -6 -5 -5 --------- Run | Scr Mat Mat Mat Fac Gar Fac Low Low Dat Pro Fac Total 5266 | 116 776 878 523 582 271 453 535 449 77 404 202 Wait 185 | . 12 72 41 9 5 14 1 3 . 23 5 Move 4409 | 77 650 706 373 522 220 406 496 400 77 317 165 Hop . | . . . . . . . . . . . . Pick Up 59 | 10 13 8 5 8 1 4 2 3 . 3 2 Fast Attach 67 | 7 6 4 10 6 2 2 4 3 . 14 9 Attach 29 | . 2 2 5 2 2 3 3 1 . 9 . Detach 8 | . 1 2 . . . 1 . 1 . . 3 Swap 41 | 1 7 12 9 3 2 2 . 3 . 2 . Drop 73 | 2 14 19 13 16 1 4 . 3 . . 1 Fire 366 | 19 71 53 64 16 34 17 29 32 . 23 8 Melee 13 | . . . . . . . . . . 13 . Ram 8 | . . . . . . . . . . . 8 Kick 1 | . . . . . . . . . . . 1 Crush 3 | . . . 3 . . . . . . . . Escape Stasis 4 | . . . . . 4 . . . . . . Rewire . | . . . . . . . . . . . . Trap . | . . . . . . . . . . . . Miscellaneous . | . . . . . . . . . . . . Route ------- -11/Scrapyard -10/Materials (discovered 4 exits: *Mat x3 / *Min) -9/Materials (discovered 3 exits: *Mat x2 / [*Min]) -8/Materials -7/Factory -7/Garrison -6/Factory -6/Lower Caves -6/Lower Caves (discovered 2 exits: [*Fac] / *Dat) -6/Data Miner -5/Proximity Caves -5/Factory (discovered 1 exit: *Upp) History --------- Turn | Location | Event 30 | -11/Scrapyard | Discovered new exit (range 16) 153 | -11/Scrapyard | Entered Materials 241 | -10/Materials | Identified exit to Mines 317 | -10/Materials | Build established: Mutant 433 | -10/Materials | Lost 3 parts (1p1u1w) 686 | -10/Materials | Discovered new exit (range 15) 900 | -10/Materials | Discovered new exit (range 10) 1232 | -10/Materials | Discovered new exit (range 5) 1431 | -10/Materials | Entered another Materials area 1431 | -9/Materials | Evolved 2 slots: Utility x1, Weapon x1 1791 | -9/Materials | Build established: Tank 2478 | -9/Materials | Discovered new exit (range 3) 2525 | -9/Materials | Build established: Scavenger-Gunner 2729 | -9/Materials | Discovered new exit (range 13) 2847 | -9/Materials | Discovered new exit (range 3) 2854 | -9/Materials | Entered another Materials area 2854 | -8/Materials | Evolved 2 slots: Propulsion x1, Utility x1 3158 | -8/Materials | Build established: Tank 3367 | -8/Materials | Discovered new exit (range 16) 3654 | -8/Materials | First assault squad dispatched 3747 | -8/Materials | Entered Factory 3747 | -7/Factory | Evolved 2 slots: Utility x1, Weapon x1 3859 | -7/Factory | Build established: Scavenger-Tank 4675 | -7/Factory | Identified exit to Garrison 4675 | -7/Factory | Entered Garrison 4708 | -7/Garrison | Triggered checkpoint 4760 | -7/Garrison | Garrison Relay disabled 4812 | -7/Garrison | Triggered checkpoint 4978 | -7/Garrison | Triggered checkpoint 5090 | -7/Garrison | Triggered checkpoint 5142 | -7/Garrison | Garrison Relay disabled 5172 | -7/Garrison | Garrison Relay disabled 5241 | -7/Garrison | Discovered new exit (range 11) 5265 | -7/Garrison | Entered Factory 5265 | -6/Factory | Evolved 2 slots: Propulsion x1, Utility x1 5902 | -6/Factory | Discovered new exit (range 4) 5994 | -6/Factory | Entered Lower Caves 6015 | -6/Lower Caves | Attracted the attention of an 0b10 checkpoint 6127 | -6/Lower Caves | Identified exit to Lower Caves 6245 | -6/Lower Caves | Build established: Scavenger-Gunner 6461 | -6/Lower Caves | Spotted B-75 Beast 6526 | -6/Lower Caves | Destroyed B-75 Beast 6548 | -6/Lower Caves | Learned Factory garrison access intel 6554 | -6/Lower Caves | Lost 5 parts (1n3u1w) 6860 | -6/Lower Caves | Attracted the attention of an 0b10 outpost 6911 | -6/Lower Caves | Lost 3 parts (2n1w) 6917 | -6/Lower Caves | Build established: Scavenger-Tank 6926 | -6/Lower Caves | Entered another Lower Caves area 6931 | -6/Lower Caves | Discovered new exit (range 10) 7284 | -6/Lower Caves | Learned 12 Factory zone layouts 7763 | -6/Lower Caves | Attracted the attention of an 0b10 checkpoint 7816 | -6/Lower Caves | Encountered a Warlord checkpoint 7817 | -6/Lower Caves | Discovered new exit (range 15) 7839 | -6/Lower Caves | Entered Data Miner 7839 | -6/Data Miner | Discovered new exit (range 6) 7870 | -6/Data Miner | Met Data Miner 7898 | -6/Data Miner | Learned location of Section 7 (-2) 7898 | -6/Data Miner | Acquired the access code to Warlord's prototype stash 7926 | -6/Data Miner | Received God Mode back door access code from Data Miner 7961 | -6/Data Miner | Entered Proximity Caves 8036 | -5/Proximity Caves | Lost 7 parts (3n1u3w) 8138 | -5/Proximity Caves | Escorted by Enhanced Grunt 8138 | -5/Proximity Caves | Attracted the attention of an 0b10 checkpoint 8152 | -5/Proximity Caves | Released all parts (5) 8181 | -5/Proximity Caves | Lost 5 parts (2n2u1w) 8224 | -5/Proximity Caves | Spotted B-75 Beast 8262 | -5/Proximity Caves | Destroyed B-75 Beast 8288 | -5/Proximity Caves | Lost 3 parts (1p2u) 8304 | -5/Proximity Caves | Found Prototype Device 8304 | -5/Proximity Caves | Identified Exp. Thermal Shield 8442 | -5/Proximity Caves | Build established: Scavenger-Mutant 8594 | -5/Proximity Caves | Core integrity fell below 50% 8604 | -5/Proximity Caves | Released all parts (9) 8606 | -5/Proximity Caves | Discovered new exit (range 10) 8612 | -5/Proximity Caves | Entered Factory 8612 | -5/Factory | Evolved 2 slots: Utility x2 8613 | -5/Factory | Identified exit to Upper Caves 8615 | -5/Factory | Loaded intel: 4 garrison access locations 8633 | -5/Factory | Lost 7 parts (1p2n4u) 8734 | -5/Factory | Released all parts (4) 8755 | -5/Factory | Core integrity fell below 50% 8775 | -5/Factory | Core integrity fell below 20% 8793 | -5/Factory | Destroyed by Y-64 Sentinel with KE Penetrator Last Messages --------------- 08733_ Slug penetrates Assembly Bed. 08733_ Penetrated by Slug. 08734_ Released Arm. Leg. 08735_ Slug penetrates Assembly Bed. 08737_ Penetrated by Slug. 08753_ Slammed into S-27 Virus. 08758_ Slug penetrates Wall. 08762_ Slammed into S-27 Virus. 08764_ Slug penetrates Wall. 08773_ Slammed into A-15 Conveyor. 08774_ Slug penetrates S-27 Virus. 08774_ S-27 Virus destroyed. 08774_ Penetrated by Slug. 08774_ A-15 Conveyor suffers critical hit (Destroy). 08775_ Slammed into A-15 Conveyor. 08776_ Penetrated by Slug. 08776_ Slammed into A-15 Conveyor. 08778_ Slammed into U-05 Engineer. 08778_ Destabilizing: Core damaged (-20). 08793_ Penetrated by Slug. Map ----- +----------------------------------------------------+ | ?????????????????????????????????????????????????? | | ?????????????????????????????????????????????????? | | ?????????????????????????????????????????????????? | | ?????????????????????????????????????????????????? | | ?????????????????????????????????????????????????? | | ?????????????????????????????????????????????????? | | ?????????????????????????????????????????????????? | | ?????????????????????????????????????????????????? | | ?????????????????????????????????????????????????? | | ?????????????????????????????????????????????????" | | ?????????????????????? ????????????????????????" | | ????????????????????? ???????????????????????" | | ???????????????????? ???????????????????????? | | ???????????????????? #??????????????????????? | | ????????????????????? ???????????????????????? | | ????????????????????? ???????????????????????? | | ????????????????????? ???????????????????????? | | ?????????????????????? ????????????????????????? | | ?????????????????????? ????????????????????????? | | ??????????????????????# #????????????????????????? | | ??????????????????????# #??????????####??????????? | | ????????????????????### ###?????? ! #??????????? | | ????????????????????# ##### ##?????????? | | ???????############## [ ????????? | | ????? / Y > ????????? | | ????????????## # @ k ????????? | | ?????????????# # ##### !#??????????? | | ?????????????# ###+###??????????????????????? | | ?????????????# #????????????????????????????? | | ?????????????# #????????????????????????????? | | ?????????????# #????????????????????????????? | | ?????????????# ## #????????????????????????????? | | ?????????????# ?# #?????????##############?????? | | ???????????? ?# #?????????# #?????? | | ???????????#### ??# #?????????# " " " " " #?????? | | ??????????????# ??# #?????????# " " " " " #?????? | | ??????????????#???# #?????????# " " " " " #?????? | | ??????????????????# #?????????# " " " " " #?????? | | ??????????????????# #?????????# " " " " " #?????? | | ??????????????????# #?????????# " " " " " #?????? | | ??????????????????# #?????????# " " " " " #?????? | | ??????????????????# #?????????# " " " " " #?????? | | ??????????????????# #?????????# " " " " " #?????? | | ??????????????????# #?????????# #?????? | | ??????????????????# #?????????# #?????? | | ??????????????????# #??????##########+############ | | ??????????????????# #??????# | | ????????????####### ######## % | | ????? """" """" """" | | ????????????################ """" """" """" | +----------------------------------------------------+ Best States ------------- Heat Dissipation 137 Energy Generation 21 Energy Capacity 700 Matter Stores 300 Matter Capacity 300 Sight Range 16 Terrain Scan Range 16 Terrain Scan Density 10 Base Temperature (-) 100 Armor Coverage 825 Resistance: TH 30 Core Shielding 20 Evasion (%) 55 Recoil Reduction 4 Particle Charging 20 Item Schematics ----------------- Combat Drone Bay | -6/Data Miner | Free Lgt. Regenerative Plating | -6/Data Miner | Free Cld. Gravmag System | -6/Data Miner | Free Imp. Matter Compressor | -6/Data Miner | Free Enh. Coil Gun | -6/Data Miner | Free Impulse Thruster | -6/Data Miner | Free Adv. Cryofiber Web | -6/Data Miner | Free Hvy. Gauss Cannon | -6/Data Miner | Free Imp. Dynamic Insulation System | -6/Data Miner | Free Quantum Capacitor | -6/Data Miner | Free Arm. Heavy Treads | -6/Data Miner | Free Robot Schematics ------------------ P-60 Hacker | -6/Data Miner | Free M-22 Extractor | -6/Data Miner | Free Y-64 Sentinel | -6/Data Miner | Free L-41 Fighter | -6/Data Miner | Free B-60 Warrior | -6/Data Miner | Free A-15 Conveyor | -6/Data Miner | Free H-77 Assassin | -6/Data Miner | Free Fabricated ------------ Nothing Alien Tech Used ----------------- None Achievements -------------- None Challenges ------------ None Game ------ Seed FocalHeatCycler Manual? 0 Play Time 01:06:50 Cumulative 454.5 hours Start 2022.08.08 @ 16:47:14 End 2022.08.09 @ 11:30:50 Sessions 1 Manual Loads 0 Difficulty Rogue Special Mode None Game No. 502 Rogue 501 Adventurer 0 Explorer 1 Win Type - Total 14 Types 9/0/2/3/0/0/0/0/0 Lore% 78 Gallery% 88 Achievement% 69 Wizard Run 0 Options --------- ASCII 0 Keyboard 1 Movement Vi Keybinds 0 Fullscreen 1 Font 18/SmallcapsGlow Map View 76x50 Tactical HUD 1 Map Filters NONE Filters NONE Steam 1 RUN: d9ce0c5d-3c3a-400a-a456-c3c15daec876